Workbook

Sheet Lista de Tabelas

Sheet 1. Histórico de Produção
B2: 1. HISTÓRICO DA PRODUÇÃO NACIONAL
B6: Tabela 1. Histórico de produção de petróleo – óleo e condensado (Mbbl/d)
C8: 08/2019 | D8: 09/2019 | E8: 10/2019 | F8: 11/2019 | G8: 12/2019 | H8: 01/2020 | I8: 02/2020 | J8: 03/2020 | K8: 04/2020 | L8: 05/2020 | M8: 06/2020 | N8: 07/2020 | O8: 08/2020
B9: Óleo | C9: 2977.237242 | D9: 2915.391304 | E9: 2952.199751 | F9: 3078.75286 | G9: 3095.060274 | H9: 3156.255318 | I9: 2959.92026 | J9: 2962.960439 | K9: 2948.310339 | L9: 2755.498253 | M9: 3003.263319 | N9: 3068.449496 | O9: 3077.408964
B10: Condensado | C10: 12.19297114 | D10: 11.88336095 | E10: 11.69528613 | F10: 11.71502275 | G10: 11.53830291 | H10: 12.15219753 | I10: 11.75694602 | J10: 10.42510952 | K10: 10.053946 | L10: 9.936671063 | M10: 9.882566654 | N10: 9.855426616 | O10: 9.52222061
B11: Petróleo | C11: 2989.430213 | D11: 2927.274665 | E11: 2963.895037 | F11: 3090.467882 | G11: 3106.598577 | H11: 3168.407516 | I11: 2971.677206 | J11: 2973.385549 | K11: 2958.364285 | L11: 2765.434924 | M11: 3013.145886 | N11: 3078.304922 | O11: 3086.931185
B14: Tabela 2. Histórico de produção de gás natural – GASA e GASN (MMm³/d)
C16: 08/2019 | D16: 09/2019 | E16: 10/2019 | F16: 11/2019 | G16: 12/2019 | H16: 01/2020 | I16: 02/2020 | J16: 03/2020 | K16: 04/2020 | L16: 05/2020 | M16: 06/2020 | N16: 07/2020 | O16: 08/2020
B17: GASA | C17: 107.5996642 | D17: 102.903797 | E17: 106.1164008 | F17: 110.587249 | G17: 111.9275296 | H17: 111.606383 | I17: 105.8729777 | J17: 106.9799671 | K17: 110.5608685 | L17: 100.0425543 | M17: 110.2861788 | N17: 112.3043233 | O17: 115.8704946
B18: GASN | C18: 25.72313926 | D18: 25.95255192 | E18: 25.47825991 | F18: 26.00960533 | G18: 25.85148261 | H18: 27.14649007 | I18: 23.06225719 | J18: 14.76937205 | K18: 13.44493475 | L18: 14.32457794 | M18: 18.18637217 | N18: 18.02793117 | O18: 17.64539824
B19: Gás Total | C19: 133.3228034 | D19: 128.8563489 | E19: 131.5946607 | F19: 136.5968543 | G19: 137.7790122 | H19: 138.7528731 | I19: 128.9352349 | J19: 121.7493391 | K19: 124.0058032 | L19: 114.3671322 | M19: 128.472551 | N19: 130.3322545 | O19: 133.5158929
B22: Tabela 3. Histórico da movimentação da gás natural (Mm³/d)
B24: Período | C24: Consumo Interno | D24: Queima | E24: Disponível | F24: Injeção | G24: Produção
B25: 08/19 | C25: 14393.58777 | D25: 3323.255819 | E25: 65534.58123 | F25: 50071.37861 | G25: 133322.8034
B26: 09/19 | C26: 14287.9335 | D26: 3275.474287 | E26: 67163.30214 | F26: 44129.63901 | G26: 128856.3489
B27: 10/19 | C27: 14284.62331 | D27: 3507.725614 | E27: 66688.77519 | F27: 47113.53657 | G27: 131594.6607
B28: 11/19 | C28: 14345.48834 | D28: 3432.365148 | E28: 66420.3494 | F28: 52398.65144 | G28: 136596.8543
B29: 12/19 | C29: 14347.48369 | D29: 3679.253162 | E29: 65605.8955 | F29: 54146.41294 | G29: 137779.0453
B30: 01/20 | C30: 14640.66376 | D30: 4033.686445 | E30: 67943.57416 | F30: 52082.82284 | G30: 138700.7472
B31: 02/20 | C31: 14164.81858 | D31: 3643.989272 | E31: 61364.60234 | F31: 49761.82471 | G31: 128935.2349
B32: 03/20 | C32: 14380.26079 | D32: 3398.065698 | E32: 47931.51383 | F32: 56039.49878 | G32: 121749.3391
B33: 04/20 | C33: 14339.35948 | D33: 2723.613006 | E33: 50600.74539 | F33: 56342.53753 | G33: 124006.2554
B34: 05/20 | C34: 13732.79069 | D34: 2781.886388 | E34: 48677.43975 | F34: 49175.01542 | G34: 114367.1322
B35: 06/20 | C35: 14313.70533 | D35: 3132.155561 | E35: 56333.69979 | F35: 54692.99032 | G35: 128472.551
B36: 07/20 | C36: 14152.5162 | D36: 4000.697537 | E36: 54925.63391 | F36: 57253.40688 | G36: 130332.2545
B37: 08/20 | C37: 14287.89664 | D37: 3994.673647 | E37: 55647.20203 | F37: 59586.1206 | G37: 133515.8929
B39: Tabela 4. Histórico de produção de petróleo e gás natural (Mboe/d)
C42: 08/2019 | D42: 09/2019 | E42: 10/2019 | F42: 11/2019 | G42: 12/2019 | H42: 01/2020 | I42: 02/2020 | J42: 03/2020 | K42: 04/2020 | L42: 05/2020 | M42: 06/2020 | N42: 07/2020 | O42: 08/2020
B43: Petróleo | C43: 2989.430213 | D43: 2927.274665 | E43: 2963.895037 | F43: 3090.467882 | G43: 3106.598577 | H43: 3168.407516 | I43: 2971.677206 | J43: 2973.385549 | K43: 2958.364285 | L43: 2765.434924 | M43: 3013.145886 | N43: 3078.304922 | O43: 3086.931185
B44: Gás Natural | C44: 838.5751022 | D44: 810.481952 | E44: 827.7054126 | F44: 859.1682604 | G44: 866.6038088 | H44: 872.7292085 | I44: 810.9781298 | J44: 765.7802106 | K44: 779.9729413 | L44: 719.3475318 | M44: 808.067936 | N44: 819.7651178 | O44: 839.7895981
B45: Produção Total | C45: 3828.005315 | D45: 3737.756617 | E45: 3791.600449 | F45: 3949.636143 | G45: 3973.202386 | H45: 4041.136724 | I45: 3782.655336 | J45: 3739.165759 | K45: 3738.337227 | L45: 3484.782456 | M45: 3821.213822 | N45: 3898.07004 | O45: 3926.720783

Sheet 2. Dados de Produção
B2: 2. DADOS DE PRODUÇÃO - DISTRIBUIÇÃO
B6: Tabela 5. Distribuição da produção de petróleo e gás natural por estado
B8: Estado | C8: Petróleo (bbl/d) | D8: Gás Natural (Mm³/d) | E8: Produção Total (boe/d) | F8: Nº Campos produtores
B9: Rio de Janeiro | C9: 2468653.362 | D9: 87237.37313 | E9: 3017359.864 | F9: 39
B10: São Paulo | C10: 293036.5029 | D10: 17779.36831 | E10: 404865.3515 | F10: 8
B11: Espírito Santo | C11: 236636.1498 | D11: 6355.743776 | E11: 276612.5706 | F11: 40
B12: Amazonas | C12: 15323.68758 | D12: 13819.54389 | E12: 102245.9929 | F12: 7
B13: Bahia | C13: 24210.10251 | D13: 4512.90255 | E13: 52595.4021 | F13: 72
B14: Rio Grande do Norte | C14: 35079.78324 | D14: 651.3771135 | E14: 39176.82152 | F14: 72
B15: Maranhão | C15: 77.84423666 | D15: 2185.964391 | E15: 13827.14492 | F15: 6
B16: Sergipe | C16: 10783.05116 | D16: 68.25840194 | E16: 11212.38354 | F16: 12
B17: Alagoas | C17: 2464.831772 | D17: 904.719589 | E17: 8155.34609 | F17: 11
B18: Ceará | C18: 705.8968546 | D18: 0.896266129 | E18: 711.5341983 | F18: 2
B19: Total Geral | C19: 3086971.212 | D19: 133516.1474 | E19: 3926762.411 | F19: 269
B20: Tabela 6. Distribuição da produção de petróleo e gás natural por bacia
B22: Bacia | C22: Petróleo (bbl/d) | D22: Gás Natural (Mm³/d) | E22: Produção Total (boe/d) | F22: Nº Campos produtores
B23: Santos | C23: 2097667.86 | D23: 93117.68063 | E23: 2683360.379 | F23: 21
B24: Campos | C24: 880518.7442 | D24: 17397.95259 | E24: 989948.5604 | F24: 31
B25: Solimões | C25: 15323.68758 | D25: 13819.54389 | E25: 102245.9929 | F25: 7
B26: Potiguar | C26: 35785.6801 | D26: 652.2733797 | E26: 39888.35572 | F26: 74
B27: Recôncavo | C27: 24033.47247 | D27: 1935.647521 | E27: 36208.32761 | F27: 66
B28: Espírito Santo | C28: 20139.41033 | D28: 856.8519939 | E28: 25528.84657 | F28: 35
B29: Camamu | C29: 175.834682 | D29: 2496.060626 | E29: 15875.58177 | F29: 1
B30: Parnaíba | C30: 37.81669741 | D30: 2185.709836 | E30: 13785.51628 | F30: 5
B31: Sergipe | C31: 10783.05116 | D31: 68.25840194 | E31: 11212.38354 | F31: 12
B32: Alagoas | C32: 2464.831772 | D32: 904.719589 | E32: 8155.34609 | F32: 11
B33: Tucano Sul | C33: 0.7953566194 | D33: 81.19440226 | E33: 511.4927199 | F33: 5
B34: Barreirinhas | C34: 40.02753925 | D34: 0.2545548387 | E34: 41.62864082 | F34: 1
B35: Total Geral | C35: 3086971.212 | D35: 133516.1474 | E35: 3926762.411 | F35: 269
B36: Tabela 7. Distribuição da produção de petróleo e gás natural por operador
B38: Nº | C38: Operador | D38: Petróleo (bbl/d) | E38: Gás Natural (Mm³/d) | F38: Produção Total (boe/d)
B39: 1 | C39: Petrobras | D39: 2915925.58 | E39: 127642.6294 | F39: 3718773.467
B40: 2 | C40: Total E&P do Brasil | D40: 44967.96791 | E40: 1768.950257 | F40: 56094.32892
B41: 3 | C41: Shell Brasil | D41: 37534.26121 | E41: 477.9876477 | F41: 40540.7127
B42: 4 | C42: Trident Energy | D42: 22124.32224 | E42: 252.2231348 | F42: 23710.75783
B43: 5 | C43: Petro Rio Jaguar | D43: 18236.40932 | E43: 218.4142258 | F43: 19610.1933
B44: 6 | C44: Petro Rio O&G | D44: 18841.32505 | E44: 53.97961419 | F44: 19180.84657
B45: 7 | C45: Eneva | D45: 37.81669741 | E45: 2185.709836 | F45: 13785.51628
B46: 8 | C46: Enauta Energia S.A. | D46: 10636.2148 | E46: 79.52522516 | F46: 11136.41335
B47: 9 | C47: Potiguar E&P S.A. | D47: 4733.896365 | E47: 177.8113442 | F47: 5852.295935
B48: 10 | C48: SPE 3R Petroleum | D48: 3904.931201 | E48: 160.1629613 | F48: 4912.325796
B49: 11 | C49: Perenco Brasil | D49: 3530.344695 | E49: 17.02589484 | F49: 3637.434338
B50: 12 | C50: Maha Energy | D50: 3141.029093 | E50: 66.98043387 | F50: 3562.323296
B51: 13 | C51: SHB | D51: 1436.493637 | E51: 14.29800323 | F51: 1526.425361
B52: 14 | C52: Alvopetro | D52: 32.29315265 | E52: 175.3894929 | F52: 1135.459739
B53: 15 | C53: Imetame | D53: 185.027006 | E53: 147.7368545 | F53: 1114.263751
B54: 16 | C54: Central Resources | D54: 461.4068188 | E54: 1.594920968 | F54: 471.4385687
B55: 17 | C55: Petrosynergy | D55: 326.8932891 | E55: 10.54181903 | F55: 393.1993279
B56: 18 | C56: Petroborn | D56: 0 | E56: 55.48566452 | F56: 348.9942875
B57: 19 | C57: Nova Petróleo | D57: 193.2263496 | E57: 1.529756129 | F57: 202.848225
B58: 20 | C58: Partex Brasil | D58: 194.6716485 | E58: 0.2785529032 | F58: 196.4236933
B59: 21 | C59: BGM | D59: 115.1867108 | E59: 0.09157548387 | F59: 115.7627032
B60: 22 | C60: Petrogal Brasil | D60: 100.2997815 | E60: 0.7943212903 | F60: 105.2959115
B61: 23 | C61: Recôncavo E&P | D61: 98.50167095 | E61: 0.8345877419 | F61: 103.7510693
B62: 24 | C62: Phoenix Óleo & Gás | D62: 57.10011256 | E62: 4.23358871 | F62: 83.72858116
B63: 25 | C63: Santana | D63: 46.76270838 | E63: 1.203958065 | F63: 54.33537585
B64: 26 | C64: Oeste de Canoas | D64: 40.02753925 | E64: 0.2545548387 | F64: 41.62864082
B65: 27 | C65: Vipetro | D65: 18.20689794 | E65: 0.04342 | F65: 18.48000149
B66: 28 | C66: EPG Brasil | D66: 14.48949037 | E66: 0.3256774194 | F66: 16.53793946
B67: 29 | C67: Perícia | D67: 14.36511445 | E67: 0.04567741935 | F67: 14.65241674
B68: 30 | C68: Newo | D68: 7.075995671 | E68: 0.00735483871 | F68: 7.122256209
B69: 31 | C69: Guto & Cacal | D69: 4.784313542 | E69: 0.01592677419 | F69: 4.884489926
B70: 32 | C70: Ubuntu Engenharia | D70: 4.36512814 | E70: 0.00694 | F70: 4.408779421
B71: 33 | C71: Nord | D71: 3.114470435 | E71: 0.004747741935 | F71: 3.14433283
B72: 34 | C72: Energizzi Energias | D72: 1.785494452 | E72: 0.02838709677 | F72: 1.964043897
B73: 35 | C73: Leros | D73: 1.03639837 | E73: 0.001647741935 | F73: 1.046762354
C74: Total Geral | D74: 3086971.212 | E74: 133516.1474 | F74: 3926762.411
B75: Tabela 8. Distribuição da produção de petróleo e gás natural por concessionário
B77: Nº | C77: Concessionário | D77: Petróleo (bbl/d) | E77: Gás Natural (Mm³/d) | F77: Produção Total (boe/d)
B78: 1 | C78: Petrobras | D78: 2303581.688 | E78: 102073.2144 | F78: 2945602.812
B79: 2 | C79: Shell Brasil | D79: 377303.4266 | E79: 15549.52163 | F79: 475106.9632
B80: 3 | C80: Petrogal Brasil | D80: 109603.8786 | E80: 4732.154461 | F80: 139368.231
B81: 4 | C81: Repsol Sinopec | D81: 71704.13864 | E81: 3060.054831 | F81: 90951.30211
B82: 5 | C82: Petronas | D82: 44204.9287 | E82: 515.2026168 | F82: 47445.45527
B83: 6 | C83: Equinor Energy | D83: 37697.81595 | E83: 1057.57546 | F83: 44349.76465
B84: 7 | C84: Total E&P do Brasil | D84: 35799.07346 | E84: 1079.850301 | F84: 42591.12668
B85: 8 | C85: Trident Energy | D85: 22124.32224 | E85: 252.2231348 | F85: 23710.75783
B86: 9 | C86: Petro Rio O&G | D86: 17209.24272 | E86: 49.90457 | F86: 17523.13298
B87: 10 | C87: Eneva | D87: 37.81669741 | E87: 2185.709836 | F87: 13785.51628
B88: 11 | C88: Enauta Energia S.A. | D88: 5397.233005 | E88: 1162.989895 | F88: 12712.21847
B89: 12 | C89: Petro Rio Jaguar | D89: 9435.354055 | E89: 113.0055548 | F89: 10146.13752
B90: 13 | C90: Chevron Brasil | D90: 8473.653774 | E90: 59.43147677 | F90: 8847.466471
B91: 14 | C91: ONGC Campos | D91: 8136.664559 | E91: 89.54443645 | F91: 8699.882051
B92: 15 | C92: QPI Brasil | D92: 6931.232774 | E92: 76.27859419 | F92: 7411.010638
B93: 16 | C93: Potiguar E&P S.A. | D93: 5836.777735 | E93: 187.9592229 | F93: 7019.005534
B94: 17 | C94: Barra Energia | D94: 5318.107398 | E94: 39.76261258 | F94: 5568.206676
B95: 18 | C95: SPE 3R Petroleum | D95: 3824.215367 | E95: 84.74305097 | F95: 4357.233057
B96: 19 | C96: Perenco Brasil | D96: 3530.344695 | E96: 17.02589484 | F96: 3637.434338
B97: 20 | C97: Frade | D97: 3330.132468 | E97: 39.88440323 | F97: 3580.997787
B98: 21 | C98: Maha Energy | D98: 2977.927296 | E98: 64.60693129 | F98: 3384.292618
B99: 22 | C99: Dommo Energia | D99: 1632.082334 | E99: 4.075044194 | F99: 1657.713587
B100: 23 | C100: Brasoil Manati | D100: 17.5834682 | E100: 249.6060626 | F100: 1587.558177
B101: 24 | C101: Geopark Brasil | D101: 17.5834682 | E101: 249.6060626 | F101: 1587.558177
B102: 25 | C102: Alvopetro | D102: 32.29315265 | E102: 175.3894929 | F102: 1135.459739
B103: 26 | C103: Imetame | D103: 185.027006 | E103: 147.7368545 | F103: 1114.263751
B104: 27 | C104: OP Pescada | D104: 99.62054699 | E104: 77.28365581 | F104: 585.7200581
B105: 28 | C105: SHB | D105: 434.4975224 | E105: 6.718222581 | F105: 476.7538659
B106: 29 | C106: Central Resources | D106: 461.4068188 | E106: 1.594920968 | F106: 471.4385687
B107: 30 | C107: CNODC Brasil | D107: 290.6492775 | E107: 19.29472548 | F107: 412.0094348
B108: 31 | C108: CNOOC Petroleum | D108: 290.6492775 | E108: 19.29472548 | F108: 412.0094348
B109: 32 | C109: Petrosynergy | D109: 326.8932891 | E109: 10.54181903 | F109: 393.1993279
B110: 33 | C110: Petroborn | D110: 0 | E110: 55.48566452 | F110: 348.9942875
B111: 34 | C111: Nova Petróleo | D111: 193.2263496 | E111: 1.529756129 | F111: 202.848225
B112: 35 | C112: BGM | D112: 115.1867108 | E112: 0.09157548387 | F112: 115.7627032
B113: 36 | C113: Recôncavo E&P | D113: 98.50167095 | E113: 0.8345877419 | F113: 103.7510693
B114: 37 | C114: Partex Brasil | D114: 97.33582424 | E114: 0.1392764516 | F114: 98.21184665
B115: 38 | C115: Phoenix Óleo & Gás | D115: 57.10011256 | E115: 4.23358871 | F115: 83.72858116
B116: 39 | C116: Santana | D116: 46.76270838 | E116: 1.203958065 | F116: 54.33537585
B117: 40 | C117: Petro-Victory | D117: 34.48266594 | E117: 0.2995903226 | F117: 36.36703215
B118: 41 | C118: Oeste de Canoas | D118: 20.01376963 | E118: 0.1272774194 | F118: 20.81432041
B119: 42 | C119: Vipetro | D119: 18.20689794 | E119: 0.04342 | F119: 18.48000149
B120: 43 | C120: EPG Brasil | D120: 10.07617417 | E120: 0.1853387097 | F120: 11.24191944
B121: 44 | C121: Sonangol Guanambi | D121: 7.587499252 | E121: 0.1097970968 | F121: 8.278102129
B122: 45 | C122: Guto & Cacal | D122: 4.784313542 | E122: 0.01592677419 | F122: 4.884489926
B123: 46 | C123: Ubuntu Engenharia | D123: 4.36512814 | E123: 0.00694 | F123: 4.408779421
B124: 47 | C124: Perícia | D124: 4.309534335 | E124: 0.01370322581 | F124: 4.395725022
B125: 48 | C125: NTF | D125: 3.537997835 | E125: 0.003677419355 | F125: 3.561128104
B126: 49 | C126: Newo | D126: 3.537997835 | E126: 0.003677419355 | F126: 3.561128104
B127: 50 | C127: Nord | D127: 3.114470435 | E127: 0.004747741935 | F127: 3.14433283
B128: 51 | C128: Energizzi Energias | D128: 1.785494452 | E128: 0.02838709677 | F128: 1.964043897
B129: 52 | C129: Leros | D129: 1.03639837 | E129: 0.001647741935 | F129: 1.046762354
C130: Total Geral | D130: 3086971.212 | E130: 133516.1474 | F130: 3926762.411
B132: Tabela 9. Movimentação de gás natural por destinação (Mm³/d)
B133: Bacia | C133: Consumo Interno | D133: Queima | E133: Disponível | F133: Injeção | G133: Produção
B134: Santos | C134: 6936.299337 | D134: 2574.541143 | E134: 30927.53798 | F134: 52679.30217 | G134: 93117.68063
B135: Campos | C135: 6354.595223 | D135: 1047.719921 | E135: 9832.423894 | F135: 163.213609 | G135: 17397.95265
B136: Solimões | C136: 449.5124181 | D136: 183.9697735 | E136: 6857.245989 | F136: 6328.81571 | G136: 13819.54389
B137: Camamu | C137: 65.15877419 | D137: 3.293354839 | E137: 2427.608497 | F137: 0 | G137: 2496.060626
B138: Parnaíba | C138: 5.012878065 | D138: 6.85781871 | E138: 2173.83914 | F138: 0 | G138: 2185.709836
B139: Recôncavo | C139: 98.86202323 | D139: 62.13960677 | E139: 1359.856784 | F139: 414.7891074 | G139: 1935.647521
B140: Alagoas | C140: 3.913354194 | D140: 14.64818226 | E140: 886.1580526 | F140: 0 | G140: 904.719589
B141: Espírito Santo | C141: 260.5710568 | D141: 26.97740677 | E141: 569.3035303 | F141: 0 | G141: 856.8519939
B142: Potiguar | C142: 76.46604355 | D142: 47.22272871 | E142: 528.5846074 | F142: 0 | G142: 652.2733797
B143: Tucano Sul | C143: 1e-38 | D143: 0.5406229032 | E143: 80.65377935 | F143: 0 | G143: 81.19440226
B144: Sergipe | C144: 37.50553677 | D144: 26.76308871 | E144: 3.989776452 | F144: 0 | G144: 68.25840194
B145: Total Geral | C145: 14287.89664 | D145: 3994.673647 | E145: 55647.20203 | F145: 59586.1206 | G145: 133515.8929
B147: Tabela 10. Distribuição da produção dos campos do Pré-sal¹
B149: Campo | C149: Petróleo (bbl/d) | E149: Gás natural (Mm³/d) | G149: Produção (boe/d)
C150: Pré-sal | D150: Pós-sal | E150: Pré-sal | F150: Pós-sal | G150: Pré-sal | H150: Pós-sal
B151: Tupi | C151: 1003715.963 | D151: 0 | E151: 44507.15018 | F151: 0 | G151: 1283657.482 | H151: 0
B152: Búzios | C152: 605217.3196 | D152: 0 | E152: 24276.35013 | F152: 0 | G152: 757910.9494 | H152: 0
B153: Sapinhoá | C153: 220085.7413 | D153: 0 | E153: 9811.389148 | F153: 0 | G153: 281797.5149 | H153: 0
B154: Jubarte | C154: 123993.0527 | D154: 56922.05737 | E154: 4619.685051 | F154: 508.1017784 | G154: 153049.9939 | H154: 60117.92102
B155: Sul de Tupi | C155: 59279.12785 | D155: 0 | E155: 2404.040002 | F155: 0 | G155: 74400.08269 | H155: 0
B156: Berbigão | C156: 51727.79871 | D156: 0 | E156: 719.1514506 | F156: 0 | G156: 56251.12469 | H156: 0
B157: Lapa | C157: 44967.96791 | D157: 0 | E157: 1768.950257 | F157: 0 | G157: 56094.32892 | H157: 0
B158: Sururu | C158: 30303.02873 | D158: 0 | E158: 987.6746487 | F158: 0 | G158: 36515.31462 | H158: 0
B159: Atapu | C159: 20718.61938 | D159: 0 | E159: 772.1949674 | F159: 0 | G159: 25575.57901 | H159: 0
B160: Albacora | C160: 7934.592474 | D160: 30794.99886 | E160: 258.5469084 | F160: 457.605471 | G160: 9560.803404 | H160: 33673.25033
B161: Sudoeste de Sapinhoá | C161: 4966.211688 | D161: 0 | E161: 221.3928045 | F161: 0 | G161: 6358.730364 | H161: 0
B162: Anc_Tupi | C162: 4440.893343 | D162: 0 | E162: 180.0981119 | F162: 0 | G162: 5573.676248 | H162: 0
B163: Oeste de Atapu | C163: 4302.464291 | D163: 0 | E163: 160.3553268 | F163: 0 | G163: 5311.068829 | H163: 0
B164: Tambuatá | C164: 3906.309895 | D164: 0 | E164: 156.6890029 | F164: 0 | G164: 4891.853952 | H164: 0
B165: Mero | C165: 2906.492767 | D165: 0 | E165: 192.9472539 | F165: 0 | G165: 4120.094334 | H165: 0
B166: Noroeste de Sapinhoa | C166: 2888.766829 | D166: 0 | E166: 128.7806384 | F166: 0 | G166: 3698.772576 | H166: 0
B167: Marlim Leste | C167: 3118.274756 | D167: 29656.76661 | E167: 65.03599194 | F167: 508.8744152 | G167: 3527.338788 | H167: 32857.49
B168: Barracuda | C168: 2370.92191 | D168: 32322.24412 | E168: 46.39656355 | F168: 582.3844484 | G168: 2662.747479 | H168: 35985.33165
B169: Caratinga | C169: 2188.543301 | D169: 6956.105511 | E169: 42.8275971 | F169: 158.3749519 | G169: 2457.92075 | H169: 7952.253867
B170: Marlim | C170: 823.9328068 | D170: 58947.268 | E170: 27.40333871 | F170: 693.0762074 | G170: 996.2946006 | H170: 63306.58566
B171: Nordeste de Sapinhoá | C171: 601.0635444 | D171: 0 | E171: 26.79516484 | F171: 0 | G171: 769.6000402 | H171: 0
B172: Voador | C172: 428.2476405 | D172: 0 | E172: 14.24316903 | F172: 0 | G172: 517.8344675 | H172: 0
B173: Anc_Norte_Atapu | C173: 239.9799884 | D173: 0 | E173: 8.944176774 | F173: 0 | G173: 296.2371609 | H173: 0
B174: Anc_Brava | C174: 29.80619221 | D174: 0 | E174: 0.9913280645 | F174: 0 | G174: 36.04145738 | H174: 0
B175: Total Geral | C175: 2201155.121 | D175: 215599.4405 | E175: 91398.03321 | F175: 2908.417272 | G175: 2776031.384 | H175: 233892.8325
B177: Tabela Adicional 1. Produção dos poços do Pré-sal¹ (antiga tabela 11 do BMP)
B179: Nome ANP do Poço | C179: Campo | D179: Bacia | E179: Petróleo (bbl/d) | F179: Gás natural (Mm³/d) | G179: Produção Total (boe/d)
B180: 7-BUZ-12-RJS | C180: Búzios/Tambuatá | D180: Santos | E180: 56456.20402 | F180: 2015.812937 | G180: 69135.28439
B181: 7-BUZ-24D-RJS | C181: Búzios/Tambuatá | D181: Santos | E181: 51312.8945 | F181: 1984.624938 | G181: 63795.80828
B182: 7-BUZ-10-RJS | C182: Búzios/Tambuatá | D182: Santos | E182: 51278.62619 | F182: 1987.980542 | G182: 63782.64608
B183: 7-BUZ-31D-RJS | C183: Búzios/Tambuatá | D183: Santos | E183: 47612.26348 | F183: 2028.43062 | G183: 60370.70668
B184: 7-BUZ-14DA-RJS | C184: Búzios/Tambuatá | D184: Santos | E184: 42034.58759 | F184: 1671.498073 | G184: 52547.99289
B185: 7-BUZ-30-RJS | C185: Búzios/Tambuatá | D185: Santos | E185: 42002.71429 | F185: 1510.180063 | G185: 51501.45995
B186: 7-BUZ-25-RJS | C186: Búzios/Tambuatá | D186: Santos | E186: 41408.94669 | F186: 1604.07684 | G186: 51498.28524
B187: 7-BUZ-23-RJS | C187: Búzios/Tambuatá | D187: Santos | E187: 39397.21954 | F187: 1535.844008 | G187: 49057.38654
B188: 9-BRSA-1191-RJS | C188: Búzios | D188: Santos | E188: 35767.33671 | F188: 1531.263706 | G188: 45398.69448
B189: 9-BUZ-3-RJS | C189: Búzios | D189: Santos | E189: 34951.45441 | F189: 1643.266564 | G189: 45287.28888
B190: 9-BUZ-4-RJS | C190: Búzios | D190: Santos | E190: 37121.13938 | F190: 1289.613081 | G190: 45232.56063
B191: 3-BRSA-1064-RJS | C191: Búzios/Tambuatá | D191: Santos | E191: 32068.07687 | F191: 1270.944014 | G191: 40062.07324
B192: 7-SPH-20D-SPS | C192: Nordeste De Sapinhoá/Noroeste De Sapinhoa/Sapinhoá/Sudoeste De Sapinhoá | D192: Santos | E192: 30999.30785 | F192: 1209.764184 | G192: 38608.49471
B193: 9-LL-2-RJS | C193: Tupi | D193: Santos | E193: 26684.38298 | F193: 1869.19788 | G193: 38441.2825
B194: 3-BRSA-1184-RJS | C194: Búzios/Tambuatá | D194: Santos | E194: 30017.80637 | F194: 1068.262945 | G194: 36736.97733 | I194: Mar | J194: Petrobras | K194: 24.07417933
B195: 9-BUZ-1-RJS | C195: Búzios | D195: Santos | E195: 29643.51317 | F195: 1110.505743 | G195: 36628.3833
B196: 7-SRR-2-RJS | C196: Sururu | D196: Santos | E196: 30303.02873 | F196: 987.6746487 | G196: 36515.31462
B197: 4-BRSA-711-RJS | C197: Tupi | D197: Santos | E197: 24542.42714 | F197: 1635.875866 | G197: 34831.77552
B198: 7-LL-80DB-RJS | C198: Anc_Tupi/Sul De Tupi/Tupi | D198: Santos | E198: 27345.83669 | F198: 1163.410679 | G198: 34663.46882
B199: 7-SPH-17-SPS | C199: Nordeste De Sapinhoá/Noroeste De Sapinhoa/Sapinhoá/Sudoeste De Sapinhoá | D199: Santos | E199: 26564.79436 | F199: 1264.973886 | G199: 34521.23976
B200: 9-LL-12D-RJS | C200: Anc_Tupi | D200: Santos | E200: 27203.03141 | F200: 1110.663942 | G200: 34188.89658
B201: 9-LL-20D-RJS | D201: Santos | E201: 25754.22823 | F201: 1245.385752 | G201: 33587.46798
B202: 7-LL-36A-RJS | C202: Tupi | D202: Santos | E202: 23625.18436 | F202: 1489.267574 | G202: 32992.39443
B203: 8-LL-87D-RJS | C203: Anc_Tupi | D203: Santos | E203: 26896.84769 | F203: 904.5555968 | G203: 32586.33053
B204: 7-SLL-5-RJS | C204: Anc_Tupi/Sul De Tupi/Tupi | D204: Santos | E204: 26472.48195 | F204: 922.5839748 | G204: 32275.35986
B205: 7-SLL-2-RJS | C205: Anc_Tupi/Sul De Tupi/Tupi | D205: Santos | E205: 26345.81228 | F205: 917.1931019 | G205: 32114.78262
B206: 7-LL-15D-RJS | C206: Anc_Tupi/Sul De Tupi/Tupi | D206: Santos | E206: 24546.60828 | F206: 1195.134561 | G206: 32063.77759
B207: 7-LL-61-RJS | C207: Anc_Tupi/Sul De Tupi/Tupi | D207: Santos | E207: 26345.55989 | F207: 902.6398316 | G207: 32022.99292
B208: 7-LL-103D-RJS | C208: Tupi | D208: Santos | E208: 24605.43643 | F208: 1129.286999 | G208: 31708.43709
B209: 7-LL-66-RJS | C209: Anc_Tupi/Sul De Tupi/Tupi | D209: Santos | E209: 25971.81654 | F209: 879.892579 | G209: 31506.17369
B210: 9-ATP-1-RJS | C210: Anc_Norte_Atapu | D210: Santos | E210: 25261.06366 | F210: 941.494471 | G210: 31182.885
B211: 7-LL-70-RJS | C211: Anc_Tupi/Sul De Tupi/Tupi | D211: Santos | E211: 24614.76363 | F211: 1040.295527 | G211: 31158.02484
B212: 7-LL-51-RJS | C212: Tupi | D212: Santos | E212: 23366.32499 | F212: 1225.634127 | G212: 31075.33078
B213: 3-BRSA-1053-RJS | C213: Búzios/Tambuatá | D213: Santos | E213: 23210.67269 | F213: 1237.368555 | G213: 30993.4858
... 84 more rows

Sheet 3. Ranking
B2: 3. RANKING DA PRODUÇÃO
B6: Tabela 11. Os 30 poços com maior produção de petróleo (bbl/d)
B8: Nº | C8: Nome ANP do Poço | D8: Campo | E8: Bacia | F8: Localização | G8: Petróleo (bbl/d)
B9: 1 | C9: 7-BUZ-12-RJS | D9: Búzios/Tambuatá | E9: Santos | F9: Mar | G9: 56456.20402
B10: 2 | C10: 7-BUZ-24D-RJS | D10: Búzios/Tambuatá | E10: Santos | F10: Mar | G10: 51312.8945
B11: 3 | C11: 7-BUZ-10-RJS | D11: Berbigão | E11: Santos | F11: Mar | G11: 51278.62619
B12: 4 | C12: 7-BUZ-31D-RJS | D12: Búzios/Tambuatá | E12: Santos | F12: Mar | G12: 47612.26348
B13: 5 | C13: 7-BUZ-14DA-RJS | D13: Búzios/Tambuatá | E13: Santos | F13: Mar | G13: 42034.58759
B14: 6 | C14: 7-BUZ-30-RJS | D14: Búzios/Tambuatá | E14: Santos | F14: Mar | G14: 42002.71429
B15: 7 | C15: 7-BUZ-25-RJS | D15: Búzios/Tambuatá | E15: Santos | F15: Mar | G15: 41408.94669
B16: 8 | C16: 7-BUZ-23-RJS | D16: Búzios/Tambuatá | E16: Santos | F16: Mar | G16: 39397.21954
B17: 9 | C17: 9-BUZ-4-RJS | D17: Búzios/Tambuatá | E17: Santos | F17: Mar | G17: 37121.13938
B18: 10 | C18: 9-BRSA-1191-RJS | D18: Búzios/Tambuatá | E18: Santos | F18: Mar | G18: 35767.33671
B19: 11 | C19: 9-BUZ-3-RJS | D19: Búzios/Tambuatá | E19: Santos | F19: Mar | G19: 34951.45441
B20: 12 | C20: 3-BRSA-1064-RJS | D20: Búzios/Tambuatá | E20: Santos | F20: Mar | G20: 32068.07687
B21: 13 | C21: 7-SPH-20D-SPS | D21: Nordeste De Sapinhoá/Noroeste De Sapinhoa/Sapinhoá/Sudoeste De Sapinhoá | E21: Santos | F21: Mar | G21: 30999.30785
B22: 14 | C22: 7-SRR-2-RJS | D22: Sururu | E22: Santos | F22: Mar | G22: 30303.02873
B23: 15 | C23: 3-BRSA-1184-RJS | D23: Búzios/Tambuatá | E23: Santos | F23: Mar | G23: 30017.80637
B24: 16 | C24: 9-BUZ-1-RJS | D24: Búzios/Tambuatá | E24: Santos | F24: Mar | G24: 29643.51317
B25: 17 | C25: 7-LL-80DB-RJS | D25: Anc_Tupi/Sul De Tupi/Tupi | E25: Santos | F25: Mar | G25: 27345.83669
B26: 18 | C26: 9-LL-12D-RJS | D26: Anc_Tupi/Sul De Tupi/Tupi | E26: Santos | F26: Mar | G26: 27203.03141
B27: 19 | C27: 8-LL-87D-RJS | D27: Anc_Tupi/Sul De Tupi/Tupi | E27: Santos | F27: Mar | G27: 26896.84769
B28: 20 | C28: 9-LL-2-RJS | D28: Tupi | E28: Santos | F28: Mar | G28: 26684.38298
B29: 21 | C29: 7-SPH-17-SPS | D29: Nordeste De Sapinhoá/Noroeste De Sapinhoa/Sapinhoá/Sudoeste De Sapinhoá | E29: Santos | F29: Mar | G29: 26564.79436
B30: 22 | C30: 7-SLL-5-RJS | D30: Anc_Tupi/Sul De Tupi/Tupi | E30: Santos | F30: Mar | G30: 26472.48195
B31: 23 | C31: 7-SLL-2-RJS | D31: Anc_Tupi/Sul De Tupi/Tupi | E31: Santos | F31: Mar | G31: 26345.81228
B32: 24 | C32: 7-LL-61-RJS | D32: Anc_Tupi/Sul De Tupi/Tupi | E32: Santos | F32: Mar | G32: 26345.55989
B33: 25 | C33: 7-BBG-2D-RJS | D33: Berbigão | E33: Santos | F33: Mar | G33: 26153.72061
B34: 26 | C34: 7-LL-66-RJS | D34: Anc_Tupi/Sul De Tupi/Tupi | E34: Santos | F34: Mar | G34: 25971.81654
B35: 27 | C35: 9-LL-20D-RJS | D35: Tupi | E35: Santos | F35: Mar | G35: 25754.22823
B36: 28 | C36: 9-BBG-1D-RJS | D36: Berbigão | E36: Santos | F36: Mar | G36: 25574.0781
B37: 29 | C37: 9-ATP-1-RJS | D37: Anc_Norte_Atapu/Atapu/Oeste De Atapu | E37: Santos | F37: Mar | G37: 25261.06366
B38: 30 | C38: 7-LL-70-RJS | D38: Anc_Tupi/Sul De Tupi/Tupi | E38: Santos | F38: Mar | G38: 24614.76363
B41: Tabela 12. Os 30 poços com maior produção de gás natural (Mm³/d)
B43: Nº | C43: Nome ANP do Poço | D43: Campo | E43: Bacia | F43: Localização | G43: Gás Natural (Mm³/d)
B44: 1 | C44: 7-BUZ-31D-RJS | D44: Búzios/Tambuatá | E44: Santos | F44: Mar | G44: 2028.43062
B45: 2 | C45: 7-BUZ-12-RJS | D45: Búzios/Tambuatá | E45: Santos | F45: Mar | G45: 2015.812937
B46: 3 | C46: 7-BUZ-10-RJS | D46: Búzios/Tambuatá | E46: Santos | F46: Mar | G46: 1987.980542
B47: 4 | C47: 7-BUZ-24D-RJS | D47: Búzios/Tambuatá | E47: Santos | F47: Mar | G47: 1984.624938
B48: 5 | C48: 9-LL-2-RJS | D48: Tupi | E48: Santos | F48: Mar | G48: 1869.19788
B49: 6 | C49: 7-BUZ-14DA-RJS | D49: Búzios/Tambuatá | E49: Santos | F49: Mar | G49: 1671.498073
B50: 7 | C50: 9-BUZ-3-RJS | D50: Búzios/Tambuatá | E50: Santos | F50: Mar | G50: 1643.266564
B51: 8 | C51: 7-MXL-18HA-SPS | D51: Mexilhão | E51: Santos | F51: Mar | G51: 1639.034547
B52: 9 | C52: 4-BRSA-711-RJS | D52: Tupi | E52: Santos | F52: Mar | G52: 1635.875866
B53: 10 | C53: 7-BUZ-25-RJS | D53: Búzios/Tambuatá | E53: Santos | F53: Mar | G53: 1604.07684
B54: 11 | C54: 7-BUZ-23-RJS | D54: Búzios/Tambuatá | E54: Santos | F54: Mar | G54: 1535.844008
B55: 12 | C55: 9-BRSA-1191-RJS | D55: Búzios/Tambuatá | E55: Santos | F55: Mar | G55: 1531.263706
B56: 13 | C56: 7-BUZ-30-RJS | D56: Búzios/Tambuatá | E56: Santos | F56: Mar | G56: 1510.180063
B57: 14 | C57: 7-LL-36A-RJS | D57: Tupi | E57: Santos | F57: Mar | G57: 1489.267574
B58: 15 | C58: 7-MXL-17HPA-SPS | D58: Mexilhão | E58: Santos | F58: Mar | G58: 1415.132748
B59: 16 | C59: 9-BUZ-4-RJS | D59: Búzios/Tambuatá | E59: Santos | F59: Mar | G59: 1289.613081
B60: 17 | C60: 7-LL-73D-RJS | D60: Tupi | E60: Santos | F60: Mar | G60: 1286.561154
B61: 18 | C61: 3-BRSA-1064-RJS | D61: Búzios/Tambuatá | E61: Santos | F61: Mar | G61: 1270.944014
B62: 19 | C62: 7-SPH-17-SPS | D62: Nordeste De Sapinhoá/Noroeste De Sapinhoa/Sapinhoá/Sudoeste De Sapinhoá | E62: Santos | F62: Mar | G62: 1264.973886
B63: 20 | C63: 9-LL-20D-RJS | D63: Tupi | E63: Santos | F63: Mar | G63: 1245.385752
B64: 21 | C64: 3-BRSA-1053-RJS | D64: Búzios/Tambuatá | E64: Santos | F64: Mar | G64: 1237.368555
B65: 22 | C65: 7-SPH-3-SPS | D65: Nordeste De Sapinhoá/Noroeste De Sapinhoa/Sapinhoá/Sudoeste De Sapinhoá | E65: Santos | F65: Mar | G65: 1230.010413
B66: 23 | C66: 7-LL-51-RJS | D66: Tupi | E66: Santos | F66: Mar | G66: 1225.634127
B67: 24 | C67: 7-SPH-20D-SPS | D67: Nordeste De Sapinhoá/Noroeste De Sapinhoa/Sapinhoá/Sudoeste De Sapinhoá | E67: Santos | F67: Mar | G67: 1209.764184
B68: 25 | C68: 7-LL-15D-RJS | D68: Anc_Tupi/Sul De Tupi/Tupi | E68: Santos | F68: Mar | G68: 1195.134561
B69: 26 | C69: 3-BRSA-830-RJS | D69: Tupi | E69: Santos | F69: Mar | G69: 1182.562931
B70: 27 | C70: 7-SPH-14D-SPS | D70: Nordeste De Sapinhoá/Noroeste De Sapinhoa/Sapinhoá/Sudoeste De Sapinhoá | E70: Santos | F70: Mar | G70: 1178.777558
B71: 28 | C71: 7-LL-80DB-RJS | D71: Anc_Tupi/Sul De Tupi/Tupi | E71: Santos | F71: Mar | G71: 1163.410679
B72: 29 | C72: 7-LL-103D-RJS | D72: Tupi | E72: Santos | F72: Mar | G72: 1129.286999
B73: 30 | C73: 3-BRSA-883-RJS | D73: Anc_Tupi/Sul De Tupi/Tupi | E73: Santos | F73: Mar | G73: 1127.252288
B76: Tabela 13. Os 30 poços com maior produção total (boe/d)
B78: Nº | C78: Nome ANP do Poço | D78: Campo | E78: Bacia | F78: Localização | G78: Produção (boe/d)
B79: 1 | C79: 7-BUZ-12-RJS | D79: Búzios/Tambuatá | E79: Santos | F79: Mar | G79: 69135.28439
B80: 2 | C80: 7-BUZ-24D-RJS | D80: Búzios/Tambuatá | E80: Santos | F80: Mar | G80: 63795.80828
B81: 3 | C81: 7-BUZ-10-RJS | D81: Búzios/Tambuatá | E81: Santos | F81: Mar | G81: 63782.64608
B82: 4 | C82: 7-BUZ-31D-RJS | D82: Búzios/Tambuatá | E82: Santos | F82: Mar | G82: 60370.70668
B83: 5 | C83: 7-BUZ-14DA-RJS | D83: Búzios/Tambuatá | E83: Santos | F83: Mar | G83: 52547.99289
B84: 6 | C84: 7-BUZ-30-RJS | D84: Búzios/Tambuatá | E84: Santos | F84: Mar | G84: 51501.45995
B85: 7 | C85: 7-BUZ-25-RJS | D85: Búzios/Tambuatá | E85: Santos | F85: Mar | G85: 51498.28524
B86: 8 | C86: 7-BUZ-23-RJS | D86: Búzios/Tambuatá | E86: Santos | F86: Mar | G86: 49057.38654
B87: 9 | C87: 9-BRSA-1191-RJS | D87: Búzios/Tambuatá | E87: Santos | F87: Mar | G87: 45398.69448
B88: 10 | C88: 9-BUZ-3-RJS | D88: Búzios/Tambuatá | E88: Santos | F88: Mar | G88: 45287.28888
B89: 11 | C89: 9-BUZ-4-RJS | D89: Búzios/Tambuatá | E89: Santos | F89: Mar | G89: 45232.56063
B90: 12 | C90: 3-BRSA-1064-RJS | D90: Búzios/Tambuatá | E90: Santos | F90: Mar | G90: 40062.07324
B91: 13 | C91: 7-SPH-20D-SPS | D91: Nordeste De Sapinhoá/Noroeste De Sapinhoa/Sapinhoá/Sudoeste De Sapinhoá | E91: Santos | F91: Mar | G91: 38608.49471
B92: 14 | C92: 9-LL-2-RJS | D92: Tupi | E92: Santos | F92: Mar | G92: 38441.2825
B93: 15 | C93: 3-BRSA-1184-RJS | D93: Búzios/Tambuatá | E93: Santos | F93: Mar | G93: 36736.97733
B94: 16 | C94: 9-BUZ-1-RJS | D94: Búzios/Tambuatá | E94: Santos | F94: Mar | G94: 36628.3833
B95: 17 | C95: 7-SRR-2-RJS | D95: Sururu | E95: Santos | F95: Mar | G95: 36515.31462
B96: 18 | C96: 4-BRSA-711-RJS | D96: Tupi | E96: Santos | F96: Mar | G96: 34831.77552
B97: 19 | C97: 7-LL-80DB-RJS | D97: Anc_Tupi/Sul De Tupi/Tupi | E97: Santos | F97: Mar | G97: 34663.46882
B98: 20 | C98: 7-SPH-17-SPS | D98: Nordeste De Sapinhoá/Noroeste De Sapinhoa/Sapinhoá/Sudoeste De Sapinhoá | E98: Santos | F98: Mar | G98: 34521.23976
B99: 21 | C99: 9-LL-12D-RJS | D99: Tambuatá | E99: Santos | F99: Mar | G99: 34188.89658
B100: 22 | C100: 9-LL-20D-RJS | D100: Tupi | E100: Santos | F100: Mar | G100: 33587.46798
B101: 23 | C101: 7-LL-36A-RJS | D101: Tupi | E101: Santos | F101: Mar | G101: 32992.39443
B102: 24 | C102: 8-LL-87D-RJS | D102: Anc_Tupi/Sul De Tupi/Tupi | E102: Santos | F102: Mar | G102: 32586.33053
B103: 25 | C103: 7-SLL-5-RJS | D103: Anc_Tupi/Sul De Tupi/Tupi | E103: Santos | F103: Mar | G103: 32275.35986
B104: 26 | C104: 7-SLL-2-RJS | D104: Anc_Tupi/Sul De Tupi/Tupi | E104: Santos | F104: Mar | G104: 32114.78262
B105: 27 | C105: 7-LL-15D-RJS | D105: Anc_Tupi/Sul De Tupi/Tupi | E105: Santos | F105: Mar | G105: 32063.77759
B106: 28 | C106: 7-LL-61-RJS | D106: Anc_Tupi/Sul De Tupi/Tupi | E106: Santos | F106: Mar | G106: 32022.99292
B107: 29 | C107: 7-LL-103D-RJS | D107: Tupi | E107: Santos | F107: Mar | G107: 31708.43709
B108: 30 | C108: 7-LL-66-RJS | D108: Anc_Tupi/Sul De Tupi/Tupi | E108: Santos | F108: Mar | G108: 31506.17369
B111: Tabela 14. Os 30 poços terrestres com maior produção de petróleo (bbl/d)
B113: Nº | C113: Nome ANP do Poço | D113: Campo | E113: Bacia | F113: Localização | G113: Petróleo (bbl/d)
B114: 1 | C114: 7-TIE-1D-BA | D114: Tiê | E114: Recôncavo | F114: Terra | G114: 1464.989781
B115: 2 | C115: 1-BRSA-769-AM | D115: Arara Azul | E115: Solimões | F115: Terra | G115: 1391.433391
B116: 3 | C116: 3-GTE-3D-BA | D116: Tiê | E116: Recôncavo | F116: Terra | G116: 641.3494731
B117: 4 | C117: 3-SUC-3-AM | D117: Rio Urucu | E117: Solimões | F117: Terra | G117: 569.3274275
B118: 5 | C118: 7-LUC-38HP-AM | D118: Leste Do Urucu | E118: Solimões | F118: Terra | G118: 540.846762
B119: 6 | C119: 9-RUC-75D-AM | D119: Rio Urucu | E119: Solimões | F119: Terra | G119: 529.3258591
B120: 7 | C120: 7-LUC-42HP-AM | D120: Leste Do Urucu | E120: Solimões | F120: Terra | G120: 477.9101116
B121: 8 | C121: 7-CNC-24-ES | D121: Cancã | E121: Espírito Santo | F121: Terra | G121: 455.9383849
B122: 9 | C122: 7-LUC-71HP-AM | D122: Leste Do Urucu | E122: Solimões | F122: Terra | G122: 445.4074169
B123: 10 | C123: 7-LUC-25-AM | D123: Leste Do Urucu | E123: Solimões | F123: Terra | G123: 418.6000438
B124: 11 | C124: 7-LUC-41HP-AM | D124: Leste Do Urucu | E124: Solimões | F124: Terra | G124: 410.4829426
B125: 12 | C125: 7-LUC-65HP-AM | D125: Leste Do Urucu | E125: Solimões | F125: Terra | G125: 395.4973688
B126: 13 | C126: 7-LUC-67HP-AM | D126: Leste Do Urucu | E126: Solimões | F126: Terra | G126: 387.7951921
B127: 14 | C127: 3-GTE-4DPA-BA | D127: Tiê | E127: Recôncavo | F127: Terra | G127: 382.2826443
B128: 15 | C128: 7-LUC-57HP-AM | D128: Leste Do Urucu | E128: Solimões | F128: Terra | G128: 356.9623406
B129: 16 | C129: 7-LUC-63HP-AM | D129: Leste Do Urucu | E129: Solimões | F129: Terra | G129: 355.9194495
B130: 17 | C130: 7-CNC-28-ES | D130: Cancã | E130: Espírito Santo | F130: Terra | G130: 350.932036
B131: 18 | C131: 7-LUC-80DP-AM | D131: Leste Do Urucu | E131: Solimões | F131: Terra | G131: 337.2803077
B132: 19 | C132: 9-RUC-97DP-AM | D132: Rio Urucu | E132: Solimões | F132: Terra | G132: 302.2988192
B133: 20 | C133: 4-LUC-3-AM | D133: Leste Do Urucu | E133: Solimões | F133: Terra | G133: 298.2863263
B134: 21 | C134: 7-MJ-94D-BA | D134: Mata De São João | E134: Recôncavo | F134: Terra | G134: 294.6567001
B135: 22 | C135: 7-RUC-112HPA-AM | D135: Rio Urucu | E135: Solimões | F135: Terra | G135: 294.1504718
B136: 23 | C136: 7-LUC-84HP-AM | D136: Leste Do Urucu | E136: Solimões | F136: Terra | G136: 293.8731115
B137: 24 | C137: 7-LUC-32HA-AM | D137: Leste Do Urucu | E137: Solimões | F137: Terra | G137: 285.4612008
B138: 25 | C138: 7-C-207-BA | D138: Candeias | E138: Recôncavo | F138: Terra e Mar | G138: 279.0214498
B139: 26 | C139: 7-LUC-59HP-AM | D139: Leste Do Urucu | E139: Solimões | F139: Terra | G139: 263.7995009
B140: 27 | C140: 7-LUC-17-AM | D140: Leste Do Urucu | E140: Solimões | F140: Terra | G140: 254.0914835
B141: 28 | C141: 3-RUC-16D-AM | D141: Rio Urucu | E141: Solimões | F141: Terra | G141: 253.9626439
B142: 29 | C142: 7-RUC-103DP-AM | D142: Rio Urucu | E142: Solimões | F142: Terra | G142: 252.4674952
B143: 30 | C143: 7-RUC-56HP-AM | D143: Rio Urucu | E143: Solimões | F143: Terra | G143: 251.7315874
B146: Tabela 15. Os 30 poços terrestres com maior produção de gás natural (Mm³/d)
B148: Nº | C148: Nome ANP do Poço | D148: Campo | E148: Bacia | F148: Localização | G148: Gás Natural (Mm³/d)
B149: 1 | C149: 9-RUC-75D-AM | D149: Rio Urucu | E149: Solimões | F149: Terra | G149: 559.3342045
B150: 2 | C150: 7-LUC-71HP-AM | D150: Leste Do Urucu | E150: Solimões | F150: Terra | G150: 527.2143784
B151: 3 | C151: 7-LUC-42HP-AM | D151: Leste Do Urucu | E151: Solimões | F151: Terra | G151: 516.800759
B152: 4 | C152: 7-LUC-84HP-AM | D152: Leste Do Urucu | E152: Solimões | F152: Terra | G152: 458.5197716
B153: 5 | C153: 7-RUC-56HP-AM | D153: Rio Urucu | E153: Solimões | F153: Terra | G153: 443.0407423
B154: 6 | C154: 9-RUC-104DP-AM | D154: Rio Urucu | E154: Solimões | F154: Terra | G154: 436.7111606
B155: 7 | C155: 7-LUC-65HP-AM | D155: Leste Do Urucu | E155: Solimões | F155: Terra | G155: 435.6831265
B156: 8 | C156: 7-GVR-18-MA | D156: Gavião Real | E156: Parnaíba | F156: Terra | G156: 432.9417181
B157: 9 | C157: 3-RUC-16D-AM | D157: Rio Urucu | E157: Solimões | F157: Terra | G157: 396.5180203
B158: 10 | C158: 7-LUC-57HP-AM | D158: Leste Do Urucu | E158: Solimões | F158: Terra | G158: 389.5335623
B159: 11 | C159: 7-LUC-41HP-AM | D159: Leste Do Urucu | E159: Solimões | F159: Terra | G159: 382.694219
B160: 12 | C160: 7-LUC-80DP-AM | D160: Leste Do Urucu | E160: Solimões | F160: Terra | G160: 379.1438106
B161: 13 | C161: 7-LUC-63HP-AM | D161: Leste Do Urucu | E161: Solimões | F161: Terra | G161: 376.8533723
B162: 14 | C162: 7-RUC-96HP-AM | D162: Rio Urucu | E162: Solimões | F162: Terra | G162: 366.8719761
B163: 15 | C163: 7-GVR-24D-MA | D163: Gavião Real | E163: Parnaíba | F163: Terra | G163: 360.4674955
B164: 16 | C164: 7-RUC-67HPA-AM | D164: Rio Urucu | E164: Solimões | F164: Terra | G164: 357.2155048
B165: 17 | C165: 7-RUC-103DP-AM | D165: Rio Urucu | E165: Solimões | F165: Terra | G165: 329.7418339
B166: 18 | C166: 7-LUC-38HP-AM | D166: Leste Do Urucu | E166: Solimões | F166: Terra | G166: 326.8062674
B167: 19 | C167: 1-BRSA-769-AM | D167: Arara Azul | E167: Solimões | F167: Terra | G167: 323.8247945
B168: 20 | C168: 7-GVR-25D-MA | D168: Gavião Real | E168: Solimões | F168: Terra | G168: 305.5981613
B169: 21 | C169: 7-RUC-79HP-AM | D169: Rio Urucu | E169: Solimões | F169: Terra | G169: 292.5470271
B170: 22 | C170: 7-LUC-17-AM | D170: Leste Do Urucu | E170: Solimões | F170: Terra | G170: 289.7611571
B171: 23 | C171: 9-LUC-91D-AM | D171: Leste Do Urucu | E171: Solimões | F171: Terra | G171: 280.1882868
B172: 24 | C172: 3-RUC-8-AM | D172: Rio Urucu | E172: Parnaíba | F172: Terra | G172: 273.5871297
B173: 25 | C173: 9-RUC-97DP-AM | D173: Rio Urucu | E173: Solimões | F173: Terra | G173: 262.7798187
B174: 26 | C174: 7-LUC-73HP-AM | D174: Leste Do Urucu | E174: Solimões | F174: Terra | G174: 261.6914877
B175: 27 | C175: 7-LUC-59HP-AM | D175: Leste Do Urucu | E175: Solimões | F175: Terra | G175: 253.6541413
B176: 28 | C176: 7-RUC-92DP-AM | D176: Rio Urucu | E176: Solimões | F176: Terra | G176: 247.5364948
B177: 29 | C177: 7-GVA-2DP-MA | D177: Gavião Azul | E177: Parnaíba | F177: Terra | G177: 244.701381
B178: 30 | C178: 3-LUC-8-AM | D178: Leste Do Urucu | E178: Solimões | F178: Terra | G178: 240.2179016
B181: Tabela 16. As 30 instalações com maior produção de petróleo (bbl/d)
B183: Instalação | C183: Petróleo (bbl/d) | D183: Gás natural (Mm³/d) | E183: Produção (boe/d) | F183: Nº poços produtores | G183: Campos Produtores
B184: PETROBRAS 77 | C184: 165597.8641 | D184: 5883.869025 | E184: 202606.2823 | F184: 4 | G184: Búzios/Tambuatá
B185: PETROBRAS 76 | C185: 160636.748 | D185: 6394.505315 | E185: 200856.9715 | F185: 4 | G185: Búzios/Tambuatá
B186: PETROBRAS 75 | C186: 148872.9427 | D186: 6406.145056 | E186: 189166.378 | F186: 5 | G186: Búzios/Tambuatá
B187: PETROBRAS 69 | C187: 141932.9236 | D187: 5445.954916 | E187: 176186.9453 | F187: 6 | G187: Anc_Tupi/Sul de Tupi/Tupi
B188: FPSO CIDADE DE ITAGUAÍ | C188: 140115.2203 | D188: 7336.959508 | E188: 186263.3016 | F188: 7 | G188: Tupi
B189: FPSO CIDADE DE ILHA BELA | C189: 136170.3887 | D189: 5730.461484 | E189: 172213.9027 | F189: 6 | G189: Nordeste de Sapinhoá/Noroeste de Sapinhoa/Sapinhoá/Sudoeste de Sapinhoá
B190: PETROBRAS 74 | C190: 134016.0747 | D190: 5748.519733 | E190: 170173.1716 | F190: 5 | G190: Búzios/Tambuatá
B191: PETROBRAS 67 | C191: 133974.6989 | D191: 4785.931147 | E191: 164077.2965 | F191: 6 | G191: Anc_Tupi/Sul de Tupi/Tupi
B192: FPSO CIDADE DE SAQUAREMA | C192: 132457.6391 | D192: 5958.001427 | E192: 169932.3361 | F192: 7 | G192: Anc_Tupi/Sul de Tupi/Tupi
B193: FPSO CIDADE DE MARICÁ | C193: 129149.4123 | D193: 4776.992428 | E193: 159195.787 | F193: 8 | G193: Anc_Tupi/Sul de Tupi/Tupi
B194: FPSO CIDADE DE MANGARATIBA | C194: 121350.3046 | D194: 7068.535445 | E194: 165810.0495 | F194: 8 | G194: Tupi
B195: PETROBRAS 66 | C195: 116926.5461 | D195: 5668.802056 | E195: 152582.234 | F195: 7 | G195: Anc_Tupi/Sul de Tupi/Tupi
B196: FPSO CIDADE DE CAMPOS DOS GOYTACAZES | C196: 99448.13077 | D196: 1145.145388 | E196: 106650.8777 | F196: 9 | G196: Tartaruga Verde/Tartaruga Verde Sudoeste
B197: PETROBRAS 58 | C197: 97864.94537 | D197: 3260.351595 | E197: 118371.9374 | F197: 12 | G197: Baleia Anã/Jubarte
B198: FPSO CIDADE DE SÃO PAULO | C198: 92371.39466 | D198: 4457.896272 | E198: 120410.7152 | F198: 6 | G198: Nordeste de Sapinhoá/Noroeste de Sapinhoa/Sapinhoá/Sudoeste de Sapinhoá
B199: FPSO CIDADE DE PARATY | C199: 82513.69762 | D199: 3202.840118 | E199: 102658.9534 | F199: 4 | G199: Anc_Tupi/Sul de Tupi/Tupi
B200: PETROBRAS 68 | C200: 82030.82744 | D200: 1706.826099 | E200: 92766.43931 | F200: 3 | G200: Berbigão/Sururu
B201: FPSO CIDADE DE ANGRA DOS REIS | C201: 69015.54197 | D201: 2847.271248 | E201: 86924.33714 | F201: 5 | G201: Anc_Tupi/Sul de Tupi/Tupi
B202: PETROBRAS 52 | C202: 57393.5951 | D202: 1064.682507 | E202: 64090.24578 | F202: 12 | G202: Roncador
B203: PETROBRAS 40 | C203: 48397.2758 | D203: 692.0255055 | E203: 52749.98474 | F203: 13 | G203: Marlim/Marlim Sul
B204: PETROBRAS 57 | C204: 47270.88242 | D204: 395.7435755 | E204: 49760.03432 | F204: 15 | G204: Jubarte
B205: FPSO CIDADE DE CARAGUATATUBA | C205: 44967.96791 | D205: 1768.950257 | E205: 56094.32892 | F205: 3 | G205: Lapa
B206: PETROBRAS 56 | C206: 36765.75335 | D206: 967.665571 | E206: 42852.18593 | F206: 10 | G206: Marlim Sul
B207: PETROBRAS 50 | C207: 34693.17511 | D207: 752.0863213 | E207: 39423.65518 | F207: 14 | G207: Albacora/Albacora Leste
B208: PETROBRAS 55 | C208: 34617.06295 | D208: 600.9144455 | E208: 38396.70064 | F208: 11 | G208: Roncador
B209: PETROBRAS 54 | C209: 32869.84909 | D209: 429.8394487 | E209: 35573.45756 | F209: 10 | G209: Roncador
B210: FPSO ESPIRITO SANTO | C210: 30135.79466 | D210: 331.6460616 | E210: 32221.78538 | F210: 22 | G210: Abalone/Argonauta/Ostra
B211: PETROBRAS 43 | C211: 28405.1979 | D211: 447.0033674 | E211: 31216.76415 | F211: 15 | G211: Barracuda/Caratinga
B212: FPSO CIDADE DE ANCHIETA | C212: 27762.87033 | D212: 1033.074653 | E212: 34260.71361 | F212: 6 | G212: Jubarte
B213: PETROBRAS 51 | C213: 27638.87788 | D213: 471.5675313 | E213: 30604.94806 | F213: 12 | G213: Marlim Sul
B216: Tabela 17. As 30 instalações com maior produção de gás natural (Mm³/d)
B218: Instalação | C218: Petróleo (bbl/d) | D218: Gás natural (Mm³/d) | E218: Produção (boe/d) | F218: Nº poços produtores | G218: Campos Produtores
B219: FPSO CIDADE DE ITAGUAÍ | C219: 140115.2203 | D219: 7336.959508 | E219: 186263.3016 | F219: 7 | G219: Tupi
B220: POLO ARARA | C220: 7508.719584 | D220: 7070.965151 | E220: 51983.7469 | F220: 32 | G220: Arara Azul/Araracanga/Carapanaúba/Cupiúba/Rio Urucu/Sudoeste Urucu
B221: FPSO CIDADE DE MANGARATIBA | C221: 121350.3046 | D221: 7068.535445 | E221: 165810.0495 | F221: 8 | G221: Tupi
B222: PETROBRAS 75 | C222: 148872.9427 | D222: 6406.145056 | E222: 189166.378 | F222: 5 | G222: Búzios/Tambuatá
B223: PETROBRAS 76 | C223: 160636.748 | D223: 6394.505315 | E223: 200856.9715 | F223: 4 | G223: Búzios/Tambuatá
... 223 more rows

Sheet 4. Pandemia_Covid-19
A1: 4. PANDEMIA/COVID-19
A4: Tabela 19. Campos com produção interrompida temporariamente
A6: Campos | B6: Operador | C6: Bacia | D6: Ambiente | E6: Dada de início da interrupção | F6: Data do fim da interrupção
A7: CAIOBA | B7: Petrobras | C7: Sergipe | D7: MAR | E7: 2020-03-26 | F7: -
A8: CAMORIM | B8: Petrobras | C8: Sergipe | D8: MAR | E8: 2020-03-26 | F8: -
A9: GUARICEMA | B9: Petrobras | C9: Sergipe | D9: MAR | E9: 2020-03-26 | F9: -
A10: ABALONE | B10: SHELL | C10: Campos | D10: MAR | E10: 2020-03-01 | F10: 2020-08-01
A11: GAROUPA | B11: Petrobras | C11: Campos | D11: MAR | E11: 2020-03-26 | F11: -
A12: CHERNE | B12: Petrobras | C12: Campos | D12: MAR | E12: 2020-03-26 | F12: -
A13: NAMORADO | B13: Petrobras | C13: Campos | D13: MAR | E13: 2020-03-26 | F13: -
A14: BAGRE | B14: Petrobras | C14: Campos | D14: MAR | E14: 2020-03-26 | F14: -
A15: BARRACUDA | B15: Petrobras | C15: Campos | D15: MAR | E15: 2020-04-07 | F15: 2020-04-26
A16: CARATINGA | B16: Petrobras | C16: Campos | D16: MAR | E16: 2020-04-04 | F16: 2020-04-26
A17: ATUM | B17: Petrobras | C17: Ceará | D17: MAR | E17: 2020-03-26 | F17: -
A18: XARÉU | B18: Petrobras | C18: Ceará | D18: MAR | E18: 2020-03-26 | F18: -
A19: CURIMÃ | B19: Petrobras | C19: Ceará | D19: MAR | E19: 2020-03-26 | F19: -
A20: ESPADA | B20: Petrobras | C20: Ceará | D20: MAR | E20: 2020-03-26 | F20: -
A21: UBARANA | B21: Petrobras | C21: Potiguar | D21: MAR | E21: 2020-03-26 | F21: -
A22: OESTE DE UBARANA | B22: Petrobras | C22: Potiguar | D22: MAR | E22: 2020-03-26 | F22: -
A23: AGULHA | B23: Petrobras | C23: Potiguar | D23: MAR | E23: 2020-03-26 | F23: -
A24: AGUILHADA | B24: Petrobras | C24: Sergipe | D24: TERRA | E24: 2020-03-26 | F24: -
A25: ANGELIM | B25: Petrobras | C25: Sergipe | D25: TERRA | E25: 2020-03-26 | F25: -
A26: ARUARI | B26: Petrobras | C26: Sergipe | D26: TERRA | E26: 2020-03-26 | F26: -
A27: ATALAIA SUL | B27: Petrobras | C27: Sergipe | D27: TERRA | E27: 2020-03-26 | F27: -
A28: BREJO GRANDE | B28: Petrobras | C28: Sergipe | D28: TERRA | E28: 2020-03-26 | F28: -
A29: ILHA PEQUENA | B29: Petrobras | C29: Sergipe | D29: TERRA | E29: 2020-03-26 | F29: -
A30: BARRINHA | B30: Petrobras | C30: Potiguar | D30: TERRA | E30: 2020-03-26 | F30: -
A31: BARRINHA LESTE | B31: Petrobras | C31: Potiguar | D31: TERRA | E31: 2020-03-26 | F31: -
A32: BARRINHA SUDOESTE | B32: Petrobras | C32: Potiguar | D32: TERRA | E32: 2020-03-26 | F32: -
A33: POÇO VERDE | B33: Petrobras | C33: Potiguar | D33: TERRA | E33: 2020-03-26 | F33: -
A34: SERRA DO MEL | B34: Petrobras | C34: Potiguar | D34: TERRA | E34: 2020-03-26 | F34: -
A35: SERRA VERMELHA | B35: Petrobras | C35: Potiguar | D35: TERRA | E35: 2020-03-26 | F35: -
A36: VALE DO QUIRICÓ | B36: Energizzi | C36: Recôncavo | D36: TERRA | E36: 2020-03-26 | F36: 2020-07-03
A37: LAGOA DO PAULO SUL | B37: Recôncavo E&P | C37: Recôncavo | D37: TERRA | E37: 2020-03-26 | F37: -
A38: JURITI | B38: Recôncavo E&P | C38: Recôncavo | D38: TERRA | E38: 2020-03-26 | F38: -
A39: BREJINHO | B39: Petrobras | C39: Recôncavo | D39: TERRA | E39: 2020-04-16 | F39: -
A40: CANABRAVA | B40: Petrobras | C40: Recôncavo | D40: TERRA | E40: 2020-04-16 | F40: -
A41: MANATI | B41: Petrobras | C41: Camamu | D41: MAR | E41: 2020-02-22 | F41: 2020-05-23
A42: PEROÁ | B42: Petrobras | C42: Espírito Santo | D42: MAR | E42: 2020-04-03 | F42: 2020-05-27
A43: CANGOÁ | B43: Petrobras | C43: Espírito Santo | D43: MAR | E43: 2020-04-03 | F43: 2020-05-27
A44: MERLUZA | B44: Petrobras | C44: Santos | D44: MAR | E44: 2020-03-27 | F44: -
A45: LAGOSTA | B45: Petrobras | C45: Santos | D45: MAR | E45: 2020-03-27 | F45: -
A46: RIO SUMAÚBA | B46: Petrobras | C46: Recôncavo | D46: TERRA | E46: 2020-05-11 | F46: -
A48: TOTAL DE CAMPOS QUE INTERROMPERAM A PRODUÇÃO | C48: 40
A50: TOTAL DE CAMPOS QUE RETORNARAM A OPERAR | C50: 7
A52: TOTAL DE CAMPOS QUE PERMANECEM COM PRODUÇÃO INTERROMPIDA | C52: 33
A57: Tabela 20. Plataformas com produção temporariamente interrompida
A60: Plataformas com produção temporariamente interrompidas | B60: Nome da UEP | C60: Campo | D60: Tipo | E60: Ambiente | F60: Dada de início da interrupção | G60: Data do fim da interrupção
A61: PCB-1 | B61: PLATAFORMA DE CAIOBA 1 | C61: CAIOBA | D61: FIXA | E61: MAR | F61: 2020-03-26 | G61: -
A62: PCB-2 | B62: PLATAFORMA DE CAIOBA 2 | C62: CAIOBA | D62: FIXA | E62: MAR | F62: 2020-03-26 | G62: -
A63: PCB-3 | B63: PLATAFORMA DE CAIOBA 3 | C63: CAIOBA | D63: FIXA | E63: MAR | F63: 2020-03-26 | G63: -
A64: PCB-4 | B64: PLATAFORMA DE CAIOBA 4 | C64: CAIOBA | D64: FIXA | E64: MAR | F64: 2020-03-26 | G64: -
A65: PCM-1 | B65: PLATAFORMA DE CAMORIM 1 | C65: CAMORIM | D65: FIXA | E65: MAR | F65: 2020-03-26 | G65: -
A66: PCM-2 | B66: PLATAFORMA DE CAMORIM 2 | C66: CAMORIM | D66: FIXA | E66: MAR | F66: 2020-03-26 | G66: -
A67: PCM-3 | B67: PLATAFORMA DE CAMORIM 3 | C67: CAMORIM | D67: FIXA | E67: MAR | F67: 2020-03-26 | G67: -
A68: PCM-4 | B68: PLATAFORMA DE CAMORIM 4 | C68: CAMORIM | D68: FIXA | E68: MAR | F68: 2020-03-26 | G68: -
A69: PCM-5 | B69: PLATAFORMA DE CAMORIM 5 | C69: CAMORIM | D69: FIXA | E69: MAR | F69: 2020-03-26 | G69: -
A70: PCM-6 | B70: PLATAFORMA DE CAMORIM 6 | C70: CAMORIM | D70: FIXA | E70: MAR | F70: 2020-03-26 | G70: -
A71: PCM-7 | B71: PLATAFORMA DE CAMORIM 7 | C71: CAMORIM | D71: FIXA | E71: MAR | F71: 2020-03-26 | G71: -
A72: PCM-8 | B72: PLATAFORMA DE CAMORIM 8 | C72: CAMORIM | D72: FIXA | E72: MAR | F72: 2020-03-26 | G72: -
A73: PCM-9 | B73: PLATAFORMA DE CAMORIM 9 | C73: CAMORIM | D73: FIXA | E73: MAR | F73: 2020-03-26 | G73: -
A74: PCM-10 | B74: PLATAFORMA DE CAMORIM 10 | C74: CAMORIM | D74: FIXA | E74: MAR | F74: 2020-03-26 | G74: -
A75: PGA-1 | B75: PLATAFORMA DE GUARICEMA 1 | C75: GUARICEMA | D75: FIXA | E75: MAR | F75: 2020-03-26 | G75: -
A76: PGA-2 | B76: PLATAFORMA DE GUARICEMA 2 | C76: GUARICEMA | D76: FIXA | E76: MAR | F76: 2020-03-26 | G76: -
A77: PGA-3 | B77: PLATAFORMA DE GUARICEMA 3 | C77: GUARICEMA | D77: FIXA | E77: MAR | F77: 2020-03-26 | G77: -
A78: PGA-4 | B78: PLATAFORMA DE GUARICEMA 4 | C78: GUARICEMA | D78: FIXA | E78: MAR | F78: 2020-03-26 | G78: -
A79: PGA-5 | B79: PLATAFORMA DE GUARICEMA 5 | C79: GUARICEMA | D79: FIXA | E79: MAR | F79: 2020-03-26 | G79: -
A80: PGA-8 | B80: PLATAFORMA DE GUARICEMA 8 | C80: GUARICEMA | D80: FIXA | E80: MAR | F80: 2020-03-26 | G80: -
A81: PRB-1 | B81: PLATAFORMA DE ROBALO 1 | C81: ROBALO | D81: FIXA | E81: MAR | F81: 2020-03-26 | G81: -
A82: P-09 | B82: PETROBRAS P-09 | C82: CONGRO, CORVINA E MALHADO | D82: SEMI-SUB | E82: MAR | F82: 2020-03-26 | G82: -
A83: PGP-1 | B83: PLATAFORMA DE GAROUPA 1 | C83: GAROUPA | D83: FIXA | E83: MAR | F83: 2020-03-26 | G83: -
A84: PCH-1 | B84: PLATAFORMA DE CHERNE 1 | C84: CHERNE | D84: FIXA | E84: MAR | F84: 2020-03-26 | G84: -
A85: PCH-2 | B85: PLATAFORMA DE CHERNE 2 | C85: CHERNE | D85: FIXA | E85: MAR | F85: 2020-03-26 | G85: -
A86: PNA-1 | B86: PLATAFORMA DE NAMORADO 1 | C86: NAMORADO | D86: FIXA | E86: MAR | F86: 2020-03-26 | G86: -
A87: PNA-2 | B87: PLATAFORMA DE NAMORADO 2 | C87: NAMORADO | D87: FIXA | E87: MAR | F87: 2020-03-26 | G87: -
A88: P-43 | B88: PETROBRAS P-43 | C88: BARRACUDA | D88: FPSO | E88: MAR | F88: 2020-04-07 | G88: 2020-05-23
A89: P-48 | B89: PETROBRAS P-48 | C89: CARATINGA | D89: FPSO | E89: MAR | F89: 2020-04-04 | G89: 2020-04-26
A90: PAT-1 | B90: PLATAFORMA DE ATUM 1 | C90: ATUM | D90: FIXA | E90: MAR | F90: 2020-03-26 | G90: -
A91: PAT-2 | B91: PLATAFORMA DE ATUM 2 | C91: ATUM | D91: FIXA | E91: MAR | F91: 2020-03-26 | G91: -
A92: PAT-3 | B92: PLATAFORMA DE ATUM 3 | C92: ATUM | D92: FIXA | E92: MAR | F92: 2020-03-26 | G92: -
A93: PXA-1 | B93: PLATAFORMA DE XARÉU 1 | C93: XARÉU | D93: FIXA | E93: MAR | F93: 2020-03-26 | G93: -
A94: PXA-2 | B94: PLATAFORMA DE XARÉU 2 | C94: XARÉU | D94: FIXA | E94: MAR | F94: 2020-03-26 | G94: -
A95: PXA-3 | B95: PLATAFORMA DE XARÉU 3 | C95: XARÉU | D95: FIXA | E95: MAR | F95: 2020-03-26 | G95: -
A96: PCR-1 | B96: PLATAFORMA DE CURIMÃ 1 | C96: CURIMÃ | D96: FIXA | E96: MAR | F96: 2020-03-26 | G96: -
A97: PCR-2 | B97: PLATAFORMA DE CURIMÃ 2 | C97: CURIMÃ | D97: FIXA | E97: MAR | F97: 2020-03-26 | G97: -
A98: PEP-1 | B98: PLATAFORMA DE ESPADA 1 | C98: ESPADA | D98: FIXA | E98: MAR | F98: 2020-03-26 | G98: -
A99: PART-2 | B99: PLATAFORMA DE ARATUM 2 | C99: ARATUM | D99: FIXA | E99: MAR | F99: 2020-03-26 | G99: -
A100: PCIO-1 | B100: PLATAFORMA DE CIOBA 1 | C100: CIOBA | D100: FIXA | E100: MAR | F100: 2020-03-26 | G100: -
A101: PUB-1 | B101: PLATAFORMA DE UBARANA 1 | C101: UBARANA | D101: FIXA | E101: MAR | F101: 2020-03-26 | G101: -
A102: PUB-2 | B102: PLATAFORMA DE UBARANA 2 | C102: UBARANA | D102: FIXA CONCRETO | E102: MAR | F102: 2020-03-26 | G102: -
A103: PUB-3 | B103: PLATAFORMA DE UBARANA 3 | C103: UBARANA | D103: FIXA CONCRETO | E103: MAR | F103: 2020-03-26 | G103: -
A104: PUB-4 | B104: PLATAFORMA DE UBARANA 4 | C104: UBARANA | D104: FIXA | E104: MAR | F104: 2020-03-26 | G104: -
A105: PUB-5 | B105: PLATAFORMA DE UBARANA 5 | C105: UBARANA | D105: FIXA | E105: MAR | F105: 2020-03-26 | G105: -
A106: PUB-6 | B106: PLATAFORMA DE UBARANA 6 | C106: UBARANA | D106: FIXA | E106: MAR | F106: 2020-03-26 | G106: -
A107: PUB-7 | B107: PLATAFORMA DE UBARANA 7 | C107: UBARANA | D107: FIXA | E107: MAR | F107: 2020-03-26 | G107: -
A108: PUB-8 | B108: PLATAFORMA DE UBARANA 8 | C108: UBARANA | D108: FIXA | E108: MAR | F108: 2020-03-26 | G108: -
A109: PUB-9 | B109: PLATAFORMA DE UBARANA 9 | C109: UBARANA | D109: FIXA | E109: MAR | F109: 2020-03-26 | G109: -
A110: PUB-10 | B110: PLATAFORMA DE UBARANA 10 | C110: UBARANA | D110: FIXA | E110: MAR | F110: 2020-03-26 | G110: -
A111: PUB-11 | B111: PLATAFORMA DE UBARANA 11 | C111: UBARANA | D111: FIXA | E111: MAR | F111: 2020-03-26 | G111: -
A112: PUB-12 | B112: PLATAFORMA DE UBARANA 12 | C112: UBARANA | D112: FIXA | E112: MAR | F112: 2020-03-26 | G112: -
A113: PUB-13 | B113: PLATAFORMA DE UBARANA 13 | C113: UBARANA | D113: FIXA | E113: MAR | F113: 2020-03-26 | G113: -
A114: PUB-15 | B114: PLATAFORMA DE UBARANA 15 | C114: UBARANA | D114: FIXA | E114: MAR | F114: 2020-03-26 | G114: -
A115: POUB-1 | B115: PLATAFORMA DE OESTE DE UBARANA 1 | C115: OESTE DE UBARANA | D115: FIXA | E115: MAR | F115: 2020-03-26 | G115: -
A116: POUB-2 | B116: PLATAFORMA DE OESTE DE UBARANA 2 | C116: OESTE DE UBARANA | D116: FIXA | E116: MAR | F116: 2020-03-26 | G116: -
A117: PBIQ-1 | B117: PLATAFORMA DE BIQUARA 1 | C117: BIQUARA | D117: FIXA | E117: MAR | F117: 2020-03-26 | G117: -
A118: PAG-1 | B118: PLATAFORMA DE AGULHA 1 | C118: AGULHA | D118: FIXA | E118: MAR | F118: 2020-03-26 | G118: -
A119: PAG-2 | B119: PLATAFORMA DE AGULHA 2 | C119: AGULHA | D119: FIXA CONCRETO | E119: MAR | F119: 2020-03-26 | G119: -
A120: PAG-3 | B120: PLATAFORMA DE AGULHA 3 | C120: AGULHA | D120: FIXA | E120: MAR | F120: 2020-03-26 | G120: -
A121: PMNT | B121: PLATAFORMA DE MANATI | C121: MANATI | D121: FIXA | E121: MAR | F121: 2020-02-22 | G121: 2020-05-23
A122: PPER | B122: PLATAFORMA DE PEROÁ | C122: PEROÁ E CANGOÁ | D122: FIXA | E122: MAR | F122: 2020-04-03 | G122: 2020-05-27
A123: PMLZ | B123: PLATAFORMA DE MERLUZA | C123: MERLUZA E LAGOSTA | D123: FIXA | E123: MAR | F123: 2020-03-27 | G123: -
A124: FPSO CMB | B124: FPSO CIDADE DE MANGARATIBA | C124: TUPI | D124: FPSO | E124: MAR | F124: 2020-04-30 | G124: 2020-05-09
A125: FPSO CAR | B125: FPSO CIDADE DE ANGRA DOS REIS | C125: TUPI | D125: FPSO | E125: MAR | F125: 2020-05-05 | G125: 2020-05-16
A126: FPSO CST | B126: FPSO CIDADE DE SANTOS | C126: UGUGUÁ E TAMBAÚ | D126: FPSO | E126: MAR | F126: 2020-04-08 | G126: 2020-04-18
A127: FPSO CAPX | B127: FPSO CAPIXABA | C127: JUBARTE E PARQUE DAS BALEIAS | D127: FPSO | E127: MAR | F127: 2020-04-09 | G127: -
A130: Total de UEPs que interromperam a produção | C130: 67 | D130: Pico de instalações que chegaram a interromper temporariamente suas operações
A132: UEPs que retornaram à operação | C132: 7
A134: Total de UEPs que permanecem com produção interrompida | C134: 60
